bitfinex-derivatives/quotes_SOLF0:USTF0_20240913
["timestamp","ask_amount","ask_price","bid_price","bid_amount"]
[1726240151327,1.609,134.14,134.08,11.46]
[1726240151527,3.7274,134.12,134.11,11.46]
[1726240152223,3.7274,134.12,134.1,21.6379]
[1726240152623,1.5891,134.15,134.11,17.91]
[1726240152820,1.5891,134.15,134.11,21.6375]
[1726240153037,3.7261,134.17,134.13,17.91]
[1726240153229,3.7261,134.17,134.15,17.91]
[1726240156134,3.7263,134.16,134.13,17.91]
[1726240157028,3.7266,134.15,134.13,17.91]
[1726240157239,1.6616,134.19,134.14,3.7267]
[1726240157435,1.6616,134.19,134.15,17.91]
[1726240158033,3.7263,134.17,134.15,17.91]
[1726240158437,1.6616,134.19,134.15,17.91]
[1726240158634,1.6616,134.19,134.15,21.6365]
[1726240158937,3.237,134.2,134.16,17.91]
[1726240159631,157.23743732,134.23,134.18,17.91]
[1726240160237,160.88510435,134.23,134.07,7.4574]
[1726240160431,160.88510435,134.23,134.15,17.91]
[1726240161432,3.7257,134.19,134.17,17.91]
[1726240161830,160.88510435,134.23,134.17,21.636]
[1726240162133,160.88510435,134.23,134.13,17.91]
[1726240162134,3.3628,134.25,134.19,17.91]
[1726240162331,7.08837837,134.25,134.19,17.91]
[1726240162532,3.3628,134.25,134.19,17.91]
[1726240163137,7.17486368,134.25,134.19,17.91]
[1726240163842,7.17486368,134.25,134.17,17.91]
[1726240164032,25.08486368,134.25,134.17,17.91]
[1726240164340,3.7257,134.19,134.17,17.91]
[1726240164529,25.08486368,134.25,134.17,17.91]
[1726240164932,17.91,134.23,134.15,17.91]
[1726240165135,17.91,134.23,134.14,17.91]
[1726240165332,17.91,134.23,134.14,21.6368]
[1726240165933,3.7262,134.17,134.14,21.6368]
[1726240166138,17.91,134.23,134.14,21.6368]
[1726240166334,3.7262,134.17,134.14,21.6368]
[1726240166734,17.91,134.23,134.14,21.6368]
[1726240166940,3.7263,134.16,134.14,17.91]
[1726240167139,3.71429912,134.18,134.07,3.72595115]
[1726240167343,3.1632,134.17,134.1,17.91]
[1726240167641,3.7933347,134.16,134.1,17.91]
[1726240168041,3.7933347,134.16,134.1,21.6378]
[1726240168246,6.82232334,134.17,134.11,17.91]
[1726240168541,3.7269,134.14,134.11,21.6375]
[1726240168739,6.82232334,134.17,134.11,17.91]
[1726240169542,3.7273,134.13,134.11,17.91]
[1726240170040,6.82232334,134.17,134.11,17.91]
[1726240170344,6.82232334,134.17,134.1,17.91]
[1726240170641,24.73232334,134.17,134.1,17.91]
[1726240171038,3.7277,134.11,134.1,17.91]
[1726240172443,17.91,134.15,134.08,17.91]
[1726240172838,17.91,134.15,134.06,21.639]
[1726240173046,17.91,134.15,134.06,17.91]
[1726240173546,3.7281,134.1,134.07,3.7286]
[1726240173849,17.91,134.15,134.08,17.91]
[1726240174044,3.728,134.1,134.08,17.91]
[1726240176242,3.728,134.1,134.08,21.6385]
[1726240176642,3.7278,134.11,134.08,21.6385]
[1726240176949,3.7278,134.11,134.08,17.91]
[1726240177139,17.91,134.16,134.08,17.91]
[1726240177449,17.91,134.16,134.08,21.6384]
[1726240177952,3.7278,134.11,134.08,21.6384]
[1726240178443,17.91,134.16,134.08,17.91]
[1726240178636,3.7275,134.12,134.09,21.638]
[1726240179247,3.7278,134.11,134.09,17.91]
[1726240179444,6.82232334,134.17,134.09,17.91]
[1726240179445,17.91,134.16,134.09,17.91]
[1726240179835,3.7278,134.11,134.09,17.91]
[1726240180150,17.91,134.16,134.08,17.91]
[1726240180348,3.7282,134.09,134.06,17.91]
[1726240180542,17.91,134.14,134.08,17.91]
[1726240180743,25.3626,134.16,134.08,17.91]
[1726240180953,3.7281,134.1,134.08,21.6384]
[1726240181142,3.7281,134.1,134.08,17.91]
[1726240181747,3.7282,134.09,134.08,17.91]
[1726240182252,3.7286,134.08,134.06,17.91]
[1726240182447,17.91,134.15,134.06,17.91]
[1726240183142,17.91,134.13,134.06,17.91]
[1726240183544,3.7287,134.08,134.06,17.91]
[1726240184155,11.46,134.1,134.05,11.46]
[1726240184343,3.73181076,134.1,134.06,11.46]
[1726240184544,11.46,134.14,134.09,11.46]
[1726240185452,11.46,134.15,134.11,11.46]
[1726240185652,11.46,134.15,134.12,11.46]
[1726240186156,3.7275,134.12,134.1,17.91]
[1726240186551,3.7275,134.12,134.1,21.6379]
[1726240187543,3.7275,134.12,134.1,17.91]
[1726240187748,3.7277,134.11,134.1,17.91]
[1726240187948,14.27452334,134.17,134.1,17.91]
[1726240188347,3.7276,134.12,134.1,17.91]
[1726240188554,3.7276,134.12,134.1,21.6379]
[1726240189254,17.91,134.16,134.06,3.729]
[1726240189553,17.91,134.16,134.06,17.91]
[1726240189853,3.7284,134.09,134.07,3.7288]
[1726240190453,3.7281,134.1,134.07,3.7288]
[1726240190656,17.91,134.16,134.07,3.7288]
[1726240190849,17.91,134.16,134.06,21.6389]
[1726240191046,17.91,134.16,134.06,17.91]
[1726240191242,17.91,134.16,134.08,17.91]
[1726240191443,3.7279,134.11,134.08,21.6383]
[1726240191643,3.7279,134.11,134.08,17.91]
[1726240191851,32.18452334,134.17,134.09,3.728]
[1726240192342,32.18452334,134.17,134.08,17.91]
[1726240193359,3.7279,134.11,134.09,3.7282]
[1726240194355,3.7279,134.11,134.08,21.6384]
[1726240194660,3.7275,134.12,134.1,17.91]
[1726240195152,32.18452334,134.17,134.1,17.91]
[1726240195760,3.7277,134.11,134.1,17.91]
[1726240198157,17.91,134.12,133.93,22.43]
[1726240198359,17.91,134.1,134.01,17.91]
[1726240198860,17.91,134.12,134.03,17.91]
[1726240199562,17.91,134.12,134.03,21.6398]
[1726240200059,3.7289,134.07,134.03,21.6398]
[1726240200267,17.91,134.12,134.03,21.6398]
[1726240200863,17.91,134.12,134.04,3.7296]
[1726240201061,3.7287,134.08,134.05,17.91]
[1726240201365,21.62474712,134.14,134.05,17.91]
[1726240201664,3.7288,134.07,134.05,17.91]
[1726240202060,21.62474712,134.14,134.05,17.91]
[1726240203367,4.8139,134.13,134.05,17.91]
[1726240203577,4.8139,134.13,134.01,3.74635813]
[1726240203578,4.8139,134.13,134.07,17.91]
[1726240203971,3.7278,134.11,134.09,17.91]
[1726240204370,3.728,134.1,134.09,17.91]
[1726240204570,3.195,134.13,134.09,17.91]
[1726240204967,3.195,134.13,134.09,21.6382]
[1726240205173,3.195,134.13,134.09,17.91]
[1726240205967,9.0711,134.17,134.09,17.91]
[1726240206179,1.7019,134.16,134.09,17.91]
[1726240206382,1.7019,134.16,134.11,17.91]
[1726240206879,3.7272,134.13,134.11,17.91]
[1726240207082,1.7019,134.16,134.11,17.91]
[1726240207581,3.7274,134.12,134.11,17.91]
[1726240209882,3.7273,134.13,134.11,17.91]
[1726240210981,3.7274,134.12,134.11,17.91]
[1726240211485,3.7273,134.13,134.11,17.91]
[1726240211679,1.7019,134.16,134.11,21.6375]
[1726240212182,1.6393,134.19,134.15,17.91]
[1726240212380,17.91,134.23,134.15,17.91]
[1726240212579,21.63314361,134.23,134.15,17.91]
[1726240213873,3.7261,134.17,134.15,17.91]
[1726240214080,17.91,134.21,134.13,17.91]
[1726240214583,3.7265,134.16,134.13,21.6371]
[1726240215181,3.7268,134.15,134.13,17.91]
[1726240215577,17.91,134.21,134.13,17.91]
[1726240216077,17.91,134.2,134.11,17.91]
[1726240216479,3.1449,134.19,134.11,17.91]
[1726240216875,1.5658,134.18,134.11,17.91]
[1726240217486,19.4758,134.18,134.09,17.91]
[1726240218187,3.7276,134.12,134.09,21.6382]
[1726240218386,3.74505526,134.16,134.11,17.91]
[1726240218581,1.5658,134.18,134.11,17.91]
[1726240218984,3.1449,134.19,134.14,17.91]
[1726240219892,3.1449,134.19,134.14,21.6368]
[1726240220388,1.6411,134.22,134.14,17.91]
[1726240220889,3.1772,134.24,134.13,17.91]
[1726240221189,17.91,134.2,134.09,3.74095502]
[1726240221390,19.4766,134.19,134.11,17.91]
[1726240221696,21.1569,134.19,134.12,17.91]
[1726240222084,3.7265,134.16,134.12,21.6374]
[1726240222591,3.2469,134.19,134.14,17.91]
[1726240222990,17.91,134.23,134.14,17.91]
[1726240223184,21.1569,134.23,134.14,17.91]
[1726240223495,3.7255,134.19,134.15,3.7263]
[1726240223787,21.1569,134.23,134.14,17.91]
[1726240223995,21.1569,134.23,134.14,21.6368]
[1726240224595,3.7259,134.18,134.14,21.6368]
[1726240224798,3.7259,134.18,134.15,3.7265]
[1726240224990,3.2469,134.23,134.16,17.91]
[1726240225296,3.7255,134.19,134.16,17.91]
[1726240225497,3.2469,134.23,134.16,17.91]
[1726240225796,3.7257,134.19,134.16,17.91]
[1726240226699,3.7257,134.18,134.16,17.91]
[1726240226991,3.2469,134.23,134.16,17.91]
[1726240227793,3.2469,134.23,134.14,21.6368]
[1726240228094,17.91,134.22,134.12,17.91]
[1726240228288,17.91,134.2,134.12,17.91]
[1726240228493,3.7264,134.16,134.12,17.91]
[1726240228889,17.91,134.2,134.12,17.91]
[1726240229099,17.91,134.2,134.13,3.7271]
[1726240229297,17.91,134.2,134.12,17.91]
[1726240229797,17.91,134.2,134.12,21.6371]
[1726240230297,3.7267,134.15,134.12,21.6371]
[1726240231398,3.7264,134.16,134.13,3.7271]
[1726240231586,3.2469,134.23,134.14,17.91]
[1726240231790,21.1569,134.23,134.14,17.91]
[1726240231986,17.91,134.21,134.13,21.637]
[1726240232186,3.2469,134.23,134.13,17.91]
[1726240232385,17.91,134.22,134.13,17.91]
[1726240232602,3.7264,134.16,134.13,21.6369]
[1726240232902,3.7264,134.16,134.13,17.91]
[1726240233098,3.7267,134.15,134.13,17.91]
[1726240233596,17.91,134.22,134.13,17.91]
[1726240233798,3.7264,134.16,134.13,17.91]
[1726240234188,17.91,134.22,134.13,17.91]
[1726240234389,17.91,134.2,134.11,17.91]
[1726240234784,3.7271,134.14,134.11,21.6375]
[1726240234991,3.69844417,134.17,134.11,17.91]
[1726240235294,3.7271,134.13,134.11,17.91]
[1726240235497,3.76034593,134.17,134.11,17.91]
[1726240235693,17.91,134.2,134.11,17.91]
[1726240235894,7.4496,134.22,134.12,3.7272]
[1726240236090,17.91,134.2,134.12,3.7272]
[1726240236292,3.7267,134.15,134.12,3.7272]
[1726240236495,3.7267,134.15,134.11,17.91]
[1726240236886,3.7267,134.15,134.12,3.7271]
[1726240238400,3.7267,134.15,134.11,17.91]
[1726240238988,3.7264,134.16,134.13,17.91]
[1726240239192,7.4496,134.22,134.13,17.91]
[1726240239688,7.4496,134.22,134.12,3.67271391]
[1726240239689,7.4496,134.22,134.14,17.91]
[1726240239887,21.1569,134.23,134.14,17.91]
[1726240240091,3.2469,134.23,134.16,17.91]
[1726240240288,3.2469,134.23,134.12,3.67271391]
[1726240240499,3.727,134.14,134.11,3.7275]
[1726240240705,3.73349697,134.15,134.09,17.91]
[1726240240893,17.91,134.17,134.09,17.91]
[1726240241096,3.68315518,134.16,134.1,3.7278]
[1726240241597,17.91,134.17,134.08,21.56779782]
[1726240241796,21.56742492,134.17,134.08,17.91]
[1726240242001,3.7276,134.12,134.09,3.7282]
[1726240242904,3.7276,134.12,134.09,3.728]
[1726240244393,3.7276,134.12,134.08,17.91]
[1726240244394,3.7273,134.13,134.08,17.91]
[1726240244599,21.56742492,134.17,134.09,17.91]
[1726240244799,3.7272,134.13,134.09,17.91]
[1726240245205,3.65742492,134.17,134.09,17.91]
[1726240245394,17.91,134.17,134.1,3.7278]
[1726240245599,3.63651794,134.16,134.1,3.7278]
[1726240245805,22.7954,134.18,134.1,3.7278]
[1726240246202,3.7273,134.13,134.1,3.7278]
[1726240249397,3.76743258,134.16,134.11,3.7276]
[1726240249598,4.8854,134.18,134.11,17.91]
[1726240249804,3.69283369,134.17,134.11,17.91]
[1726240250010,3.727,134.14,134.12,3.7274]
[1726240250307,3.727,134.14,134.11,17.91]
[1726240250308,3.69283369,134.17,134.11,17.91]
[1726240250608,3.7271,134.15,134.12,3.7275]
[1726240251003,4.8854,134.18,134.13,3.7274]
[1726240251311,3.7268,134.16,134.13,3.7274]
[1726240252407,3.727,134.15,134.13,3.7274]
[1726240253203,4.8854,134.18,134.07,7.33110537]
[1726240253204,3.78300223,134.17,134.09,17.91]
[1726240253410,4.8854,134.18,134.09,17.91]
[1726240254014,3.7277,134.13,134.09,17.91]
[1726240255107,3.7277,134.13,134.11,3.7279]
[1726240257909,3.7274,134.14,134.12,3.7278]
[1726240258314,17.91,134.16,134.08,17.91]
[1726240258615,17.91,134.15,134.08,21.6387]
[1726240259209,17.91,134.15,134.08,17.91]
[1726240259210,3.7284,134.1,134.08,17.91]
[1726240259405,3.8149944,134.16,134.03,3.6968]
[1726240259607,17.91,134.12,134.03,17.91]
[1726240259807,17.91,134.1,134.03,3.7302]
[1726240260013,17.91,134.1,134.02,17.91]
[1726240260313,3.7295,134.06,134.02,21.6404]
[1726240260810,4.8472,134.11,134.05,17.91]
[1726240260811,3.7287,134.09,134.05,17.91]
[1726240261014,3.7287,134.09,134.05,21.6395]
[1726240261217,3.1987,134.11,134.05,17.91]
[1726240261917,1.6285,134.13,134.07,17.91]
[1726240262216,3.325,134.15,134.09,17.91]
[1726240262617,3.7277,134.13,134.09,21.6384]
[1726240262814,3.325,134.15,134.09,17.91]
[1726240263114,17.91,134.19,134.11,17.91]
[1726240263319,3.7268,134.16,134.12,3.7277]
[1726240263722,3.7268,134.16,134.13,3.7275]
[1726240263912,3.7264,134.17,134.13,3.7275]
[1726240264218,3.2015,134.2,134.07,3.6921]
[1726240264219,3.2015,134.2,134.14,17.91]
[1726240264421,3.7259,134.19,134.16,21.6366]
[1726240264724,21.63753054,134.24,134.16,17.91]
[1726240264915,3.7254,134.21,134.17,3.7262]
[1726240265110,3.7254,134.21,134.14,3.69039623]
[1726240265111,3.72753054,134.24,134.18,17.91]
[1726240265409,3.66416266,134.23,134.16,17.91]
[1726240265616,3.7253,134.21,134.17,3.7263]
[1726240266420,3.77227205,134.23,134.15,28.63]
[1726240266615,28.63,134.24,134.11,3.64403195]
[1726240266819,8.57753615,134.25,134.13,28.63]
[1726240267124,8.57753615,134.25,134.18,3.7261]
[1726240267623,8.57753615,134.25,134.15,32.43619603]
[1726240268013,3.7255,134.21,134.17,3.7263]
[1726240268316,8.57753615,134.25,134.15,32.43619603]
[1726240268713,3.725,134.22,134.18,3.7259]
[1726240269423,8.57753615,134.25,134.15,32.43619603]
[1726240269424,3.7253,134.21,134.17,3.7263]
[1726240269610,3.7253,134.21,134.15,32.43619603]
[1726240270117,3.7257,134.2,134.15,28.63]
[1726240270318,8.57753615,134.25,134.13,32.34150548]
[1726240270718,3.7259,134.19,134.13,32.34150548]
[1726240270916,28.63,134.24,134.11,28.63]
[1726240271423,28.63,134.24,134.14,3.7272]
[1726240271721,3.7266,134.17,134.13,3.7272]
[1726240272118,28.63,134.22,134.13,3.7272]
[1726240272711,3.7268,134.16,134.13,3.7272]
[1726240273921,3.82018621,134.18,134.11,28.63]
[1726240274123,28.63,134.2,134.09,28.63]
[1726240274318,4.8045,134.19,134.09,28.63]
[1726240274515,3.7274,134.14,134.11,3.7279]
[1726240274731,3.67671192,134.18,134.11,28.63]
[1726240275023,3.1933,134.19,134.11,28.63]
[1726240275223,3.7263,134.18,134.15,3.7268]
[1726240276516,3.1933,134.19,134.11,28.63]
[1726240277315,3.7266,134.17,134.11,28.63]
[1726240277620,3.1933,134.19,134.13,28.63]
[1726240277810,4.84,134.23,134.13,28.63]
[1726240278218,3.7258,134.2,134.13,28.63]
[1726240278829,4.84,134.23,134.15,28.63]
[1726240279029,3.2288,134.23,134.15,28.63]
[1726240279617,3.7255,134.21,134.15,32.39976021]
[1726240280123,234.4467,134.29,134.18,28.63]
[1726240280328,4.9715,134.28,134.18,28.63]
[1726240280521,3.7249,134.23,134.2,3.7255]
[1726240282216,3.7249,134.23,134.18,28.63]
[1726240282719,3.7249,134.23,134.2,3.7254]
[1726240283735,3.7249,134.23,134.21,3.7252]
[1726240284119,4.9715,134.28,134.19,28.63]
[1726240284328,4.9715,134.28,134.23,3.7247]
[1726240284627,4.9715,134.28,134.19,28.63]
[1726240284826,3.7243,134.25,134.19,28.63]
[1726240285028,4.9715,134.28,134.19,28.63]
[1726240285436,4.9715,134.28,134.2,3.7254]
[1726240285737,3.725,134.23,134.2,3.7254]
[1726240286533,3.3176,134.28,134.24,3.7243]
[1726240286836,3.3176,134.28,134.21,28.63]
[1726240287233,3.3176,134.28,134.24,3.7244]
[1726240287936,3.7238,134.27,134.24,3.7244]
[1726240288136,3.7238,134.27,134.25,3.7241]
[1726240288438,3.7238,134.27,134.22,3.75745378]
[1726240290036,1.6608,134.28,134.21,28.63]
[1726240290343,1.6608,134.28,134.22,17.88]
[1726240290639,3.7246,134.24,134.22,17.88]
[1726240290838,19.5408,134.28,134.2,17.88]
[1726240291039,19.5408,134.28,134.21,3.7251]
[1726240291946,3.7248,134.23,134.21,3.7251]
[1726240292137,19.5408,134.28,134.21,3.7251]
[1726240293041,19.5408,134.28,134.2,17.88]
[1726240293042,3.7248,134.23,134.2,21.6054]
[1726240293237,17.88,134.25,134.1,229.0]
[1726240293442,3.269,134.24,134.15,17.88]
[1726240293642,3.76164213,134.23,134.15,17.88]
[1726240294249,3.269,134.24,134.15,17.88]
[1726240294449,17.88,134.23,134.15,17.88]
[1726240294651,3.68961012,134.22,134.15,17.88]
[1726240294839,1.5815,134.22,134.13,17.88]
[1726240295043,3.71644907,134.21,134.13,17.88]
[1726240295251,1.5815,134.22,134.14,3.727]
[1726240295542,17.88,134.21,134.13,21.63186157]
[1726240295747,21.67808421,134.21,134.13,21.63186157]
[1726240296145,3.79808421,134.21,134.12,28.64]
[1726240296346,1.5815,134.22,134.14,3.727]
[1726240296846,1.5815,134.22,134.15,3.7268]
[1726240296847,3.7259,134.19,134.15,3.7268]
[1726240297048,3.79249276,134.21,134.12,32.32327315]
[1726240297247,3.79249276,134.21,134.12,28.64]
[1726240297647,3.79249276,134.21,134.13,3.7272]
[1726240297952,1.5815,134.22,134.13,3.7272]
[1726240298148,1.5815,134.22,134.12,28.64]
[1726240298447,28.64,134.21,134.12,3.7277]
[1726240298652,3.7268,134.16,134.12,3.7277]
[1726240299155,3.72399179,134.19,134.11,3.7279]
[1726240299352,3.7271,134.15,134.1,28.64]
[1726240300855,3.7271,134.15,134.12,3.7278]
[1726240301354,3.7271,134.15,134.1,28.64]
[1726240301959,3.7271,134.15,134.11,3.728]
[1726240302259,3.7274,134.14,134.11,3.728]
[1726240303145,3.7086068,134.17,134.1,28.64]
[1726240303346,28.64,134.17,134.09,3.7285]
[1726240303552,3.3201,134.16,134.08,3.64446599]
[1726240304061,3.7276,134.13,134.1,3.7283]
[1726240305666,3.3201,134.16,134.09,3.7285]
[1726240306168,3.7277,134.13,134.09,3.7285]
[1726240307071,3.3201,134.16,134.09,3.7285]
[1726240307368,3.3201,134.16,134.1,3.7283]
[1726240307558,3.3201,134.16,134.08,32.44296926]
[1726240307969,3.7274,134.14,134.08,32.44296926]
[1726240308363,3.3201,134.16,134.1,3.7281]
[1726240308558,3.7274,134.14,134.08,32.44296926]
[1726240308763,3.3201,134.16,134.1,28.64]
[1726240308964,3.7266,134.17,134.1,28.64]
[1726240309565,3.7266,134.17,134.14,3.7272]
[1726240309970,3.7265,134.17,134.15,3.7269]
[1726240310662,3.7265,134.17,134.14,3.7271]
[1726240311674,3.66982987,134.2,134.13,3.7273]
[1726240311973,4.8672,134.21,134.13,3.7273]
[1726240312167,3.7268,134.16,134.13,3.7273]
[1726240313580,3.727,134.15,134.12,32.3676]
[1726240314077,3.727,134.15,134.12,28.64]
[1726240314468,8.67163753,134.21,134.12,28.64]
[1726240314670,4.8672,134.21,134.14,28.64]
[1726240314872,3.7257,134.2,134.17,3.7262]
[1726240315174,3.7257,134.2,134.14,28.64]
[1726240315563,3.7257,134.2,134.17,3.7261]
[1726240316264,4.9444,134.25,134.16,28.64]
[1726240316671,4.9444,134.25,134.19,28.64]
[1726240316964,3.7249,134.23,134.19,32.3656]
[1726240317668,3.725,134.22,134.19,32.3656]
[1726240318073,4.9444,134.25,134.19,32.3656]
[1726240318267,3.7249,134.23,134.2,17.88]
[1726240318880,4.9444,134.25,134.18,17.88]
[1726240319678,3.7252,134.22,134.18,21.6059]
[1726240319977,4.9444,134.25,134.18,17.88]
[1726240320180,3.7246,134.24,134.2,21.6054]
[1726240320480,3.7246,134.24,134.2,17.88]
[1726240320977,3.7247,134.23,134.2,17.88]
[1726240321278,1.6249,134.25,134.2,17.88]
[1726240321577,1.6249,134.25,134.2,21.6053]
[1726240321971,3.7249,134.23,134.2,21.6053]
[1726240322368,3.7252,134.22,134.19,21.6058]
[1726240323877,3.7253,134.21,134.19,17.88]
[1726240324079,1.6249,134.25,134.19,17.88]
[1726240324476,3.7252,134.22,134.19,17.88]
[1726240324675,3.7252,134.22,134.19,21.6057]
[1726240325382,1.6249,134.25,134.2,3.7255]
[1726240325584,1.6249,134.25,134.19,17.88]
[1726240327083,3.7249,134.23,134.2,3.7255]
[1726240327284,1.6249,134.25,134.2,3.7255]
[1726240327675,3.7249,134.23,134.2,3.7255]
[1726240327880,1.6249,134.25,134.19,21.6057]
[1726240328176,1.6249,134.25,134.19,17.88]
[1726240328968,1.6249,134.25,134.2,3.7253]
[1726240329180,1.6249,134.25,134.2,17.88]
[1726240329375,3.7247,134.23,134.2,17.88]
[1726240329987,1.6464,134.28,134.22,17.88]
[1726240330188,1.6464,134.28,134.24,17.88]
[1726240330389,3.7234,134.28,134.25,3.724]
[1726240330684,281.26491,134.29,134.24,17.88]
[1726240331082,3.7234,134.28,134.25,3.724]
[1726240331791,3.7237,134.27,134.24,21.6043]
[1726240332286,3.7237,134.27,134.23,3.7246]
[1726240332484,3.7239,134.26,134.23,3.7246]
[1726240332686,3.7239,134.26,134.22,17.88]
[1726240333094,3.7243,134.25,134.22,21.6049]
[1726240333283,3.7243,134.25,134.22,17.88]
[1726240334383,3.7243,134.25,134.22,21.6049]
[1726240335079,3.724,134.26,134.23,3.7247]
[1726240335289,281.26491,134.29,134.22,21.68346519]
[1726240335489,281.26491,134.29,134.24,17.88]
[1726240336383,3.7238,134.27,134.24,21.6043]
[1726240336584,281.26491,134.29,134.24,17.88]
[1726240337087,3.7238,134.27,134.24,21.6044]
[1726240338782,281.26491,134.29,134.24,21.6044]
[1726240339300,281.26491,134.29,134.24,17.88]
[1726240339597,3.724,134.26,134.24,17.88]
[1726240340186,3.7242,134.25,134.22,17.88]
[1726240340384,281.26491,134.29,134.23,3.7247]
[1726240340583,3.7237,134.27,134.22,21.61015873]
[1726240340990,281.26491,134.29,134.24,3.7243]
[1726240341189,3.7238,134.27,134.24,3.7243]
[1726240341499,3.7238,134.27,134.23,3.7246]
[1726240341892,3.7235,134.28,134.22,21.61015873]
[1726240342094,281.26491,134.29,134.26,3.7238]
[1726240342499,281.26491,134.29,134.24,17.88]
[1726240342794,281.26491,134.29,134.26,17.88]
[1726240342994,284.98811,134.29,134.26,17.88]
[1726240343299,281.26491,134.29,134.26,21.6037]
[1726240343594,281.26491,134.29,134.27,17.88]
[1726240345200,281.26491,134.29,134.27,21.6036]
[1726240346002,281.26491,134.29,134.27,17.88]
[1726240346798,17.88,134.35,134.27,17.88]
[1726240346998,17.88,134.35,134.27,21.6035]
[1726240346999,3.7229,134.3,134.27,21.6035]
[1726240347497,17.88,134.35,134.27,17.88]
[1726240348195,3.7232,134.29,134.26,3.7238]
[1726240352102,1.7236,134.36,134.27,17.88]
[1726240352305,1.5594,134.33,134.29,17.88]
[1726240352603,3.7225,134.32,134.29,21.6029]
[1726240352804,1.5594,134.33,134.29,17.88]
[1726240353308,3.7225,134.31,134.29,17.88]
[1726240353809,3.7224,134.32,134.29,21.603]
[1726240354507,3.7225,134.31,134.29,21.603]
[1726240355107,3.7223,134.32,134.29,21.603]
[1726240357308,3.7225,134.31,134.29,21.603]
[1726240358011,3.7225,134.31,134.28,3.7233]
[1726240358213,3.7228,134.3,134.27,17.88]
[1726240358411,1.5594,134.33,134.28,3.7232]
[1726240358805,3.7228,134.3,134.28,3.7232]
[1726240359807,3.7228,134.3,134.27,21.6034]
[1726240360018,3.7231,134.29,134.27,21.6034]
[1726240360219,1.5594,134.33,134.26,17.88]
[1726240360413,1.5594,134.33,134.26,21.6038]
[1726240360810,3.7233,134.29,134.26,21.6038]
[1726240361110,1.5594,134.33,134.26,17.88]
[1726240361316,17.88,134.31,134.24,17.88]
[1726240361505,1.6617,134.3,134.24,17.88]
[1726240361704,3.65045813,134.29,134.24,21.6044]
[1726240362011,3.7235,134.28,134.24,21.6044]
[1726240362313,3.7235,134.28,134.24,17.88]
[1726240362512,3.7235,134.28,134.25,3.7241]
[1726240364408,3.7235,134.28,134.24,21.6043]
[1726240366613,3.7235,134.28,134.22,3.68025474]
[1726240366614,3.7232,134.29,134.26,17.88]
[1726240366813,1.6617,134.3,134.26,17.88]
[1726240367215,5.3847,134.3,134.26,21.6037]
[1726240367617,5.3847,134.3,134.27,3.7236]
[1726240367814,5.3847,134.3,134.27,21.6036]
[1726240368530,3.723,134.3,134.27,21.6036]
[1726240369215,3.7233,134.28,134.26,17.88]
[1726240369418,3.2118,134.33,134.26,17.88]
[1726240369910,3.7228,134.3,134.27,3.7235]